[Event "Aktogay Masters 2019"]
[Site "Aktogay"]
[Date "2019.05.15"]
[Round "1.2"]
[White "Kuznetsov, Andrei S."]
[Black "Suleymenov, Alisher"]
[Result "1/2-1/2"]
[ECO "B22"]
[WhiteElo "2261"]
[BlackElo "2435"]
[Annotator "NA"]
[PlyCount "133"]
[EventDate "2019.05.11"]
[EventType "tourn"]
[EventCountry "KAZ"]
[SourceTitle "playchess.com"]
[Source "ChessBase"]
[SourceQuality "1"]
[TimeControl "5400+30"]

1. e4 {[%emt 1:30:30]} c5 2. Nf3 Nc6 3. c3 {[%emt 0:00:00]} d5 {[%emt 0:02:26]} 4. exd5 Qxd5 {[%emt 0:02:02]} 5. d4 {[%emt 0:00:00]} Bf5 {[%emt 0:00:04]} 6. Be3 {[%emt 0:00:00]} e6 {[%emt 0:02:39]} 7. Qb3 {[%emt 0:00:00]} O-O-O {[%emt 0:20:44]} 8. Qxd5 {[%emt 0:00:00]} Rxd5 {[%emt 0:00:32]} 9. Bc4 {[%emt 0:00:00]} Rd7 {[%emt 0:05:27]} 10. dxc5 {[%emt 0:00:00]} Nf6 {[%emt 0:00:04]} 11. Nbd2 {[%emt 0:00:00]} Ng4 {[%emt 0:01:29]} 12. b4 {[%emt 0:00:00]} Be7 {[%emt 0:02:25]} 13. h3 {[%emt 0:00:00]} Nxe3 {[%emt 0:04:38]} 14. fxe3 {[%emt 0:00:00]} Rhd8 {[%emt 0:09:57]} 15. Nd4 {[%emt 0:00:00]} Bg5 {[%emt 0:16:13]} 16. Nf1 {[%emt 0:00:00]} Be4 {[%emt 0:04:15]} 17. Rh2 {[%emt 0:00:00]} a6 {[%emt 0:06:14]} 18. h4 {[%emt 0:00:00]} Bf6 {[%emt 0:02:56]} 19. g4 {[%emt 0:00:00]} Ne5 {[%emt 0:03:54]} 20. Be2 {[%emt 0:00:00]} Ng6 {[%emt 0:00:01]} 21. h5 {[%emt 0:00:12]} Ne7 {[%emt 0:04:05]} 22. Nd2 {[%emt 0:01:48]} Bc6 {[%emt 0:04:55]} 23. Nc4 {[%emt 0:01:13]} Nd5 {[%emt 0:00:03]} 24. Rc1 {[%emt 0:01:33]} Kc7 {[%emt 0:00:19]} 25. Kf1 {[%emt 0:01:26]} Bg5 {[%emt 0:04:19]} 26. Nxc6 {[%emt 0:02:28]} bxc6 {[%emt 0:00:08]} 27. Rh3 {[%emt 0:00:44]} Bf6 {[%emt 0:01:21]} 28. e4 {[%emt 0:00:49]} Nf4 {[%emt 0:00:02]} 29. Rf3 {[%emt 0:00:30]} Bg5 {[%emt 0:00:01]} 30. Rb1 {[%emt 0:01:08]} g6 {[%emt 0:01:55]} 31. Nd6 {[%emt 0:00:39]} Ra8 {[%emt 0:01:18]} 32. a4 {[%emt 0:00:43]} f6 {[%emt 0:00:15]} 33. Bc4 {[%emt 0:01:03]} Rg7 {[%emt 0:00:30]} 34. Rb2 {[%emt 0:01:30]} gxh5 {[%emt 0:00:26]} 35. gxh5 {[%emt 0:00:03]} Re7 {[%emt 0:01:16]} 36. Rh2 {[%emt 0:00:36]} f5 {[%emt 0:00:33]} 37. Rhf2 {[%emt 0:00:59]} Nxh5 {[%emt 0:00:14]} 38. exf5 {[%emt 0:00:15]} exf5 {[%emt 0:00:16]} 39. Nxf5 {[%emt 0:00:11]} Rd7 {[%emt 0:00:40]} 40. Nd4 {[%emt 0:00:13]} Ng7 {[%emt 0:00:44]} 41. Rf7 {[%emt 0:00:19]} Re8 {[%emt 0:00:31]} 42. Bxa6 {[%emt 0:00:45]} Ree7 {[%emt 0:00:34]} 43. Rxg7 {[%emt 0:00:59]} Rxg7 {[%emt 0:00:01]} 44. Ne6+ {[%emt 0:00:02]} Kb8 {[%emt 0:00:05]} 45. Nxg7 {[%emt 0:00:17]} Rxg7 {[%emt 0:00:01]} 46. Rf8+ {[%emt 0:00:37]} Ka7 {[%emt 0:00:01]} 47. Bc4 {[%emt 0:01:05]} Be7 {[%emt 0:01:10]} 48. Rf3 {[%emt 0:00:36]} h5 {[%emt 0:00:19]} 49. Be6 {[%emt 0:00:34]} Rg6 {[%emt 0:01:31]} 50. Bh3 {[%emt 0:00:20]} Rf6 {[%emt 0:00:21]} 51. Bf5 {[%emt 0:00:26]} h4 {[%emt 0:00:54]} 52. Kg2 {[%emt 0:00:40]} Rf7 {[%emt 0:00:23]} 53. Kh3 {[%emt 0:00:18]} Kb8 {[%emt 0:00:27]} 54. Kg4 {[%emt 0:00:29]} Rg7+ {[%emt 0:00:05]} 55. Kf4 {[%emt 0:00:24]} Bf6 {[%emt 0:01:00]} 56. Rd3 {[%emt 0:00:45]} Rg3 {[%emt 0:00:32]} 57. Rd6 {[%emt 0:00:31]} Bg5+ {[%emt 0:00:37]} 58. Ke5 {[%emt 0:00:11]} h3 {[%emt 0:00:28]} 59. Rxc6 {[%emt 0:00:41]} Re3+ {[%emt 0:00:16]} 60. Kd5 {[%emt 0:00:27]} h2 {[%emt 0:00:48]} 61. Rc8+ {[%emt 0:00:26]} Ka7 {[%emt 0:00:04]} 62. Rh8 {[%emt 0:00:24]} Bf4 {[%emt 0:00:54]} 63. Kc6 {[%emt 0:00:39]} Re1 {[%emt 0:00:28]} 64. Rh7+ {[%emt 0:00:47]} Kb8 {[%emt 0:00:01]} 65. Rh8+ {[%emt 0:01:15]} Ka7 66. Rh7+ {[%emt 0:00:00]} Kb8 {[%emt 0:00:00]} 67. Rh8+ {[%emt 0:00:22]} 1/2-1/2

[Event "Aktogay Masters 2019"]
[Site "Aktogay"]
[Date "2019.05.15"]
[Round "1.3"]
[White "Kim, Kristina"]
[Black "Kaiyrbekov, Rustam"]
[Result "1/2-1/2"]
[ECO "A47"]
[WhiteElo "1916"]
[BlackElo "2329"]
[Annotator "NA"]
[PlyCount "72"]
[EventDate "2019.05.11"]
[EventType "tourn"]
[EventCountry "KAZ"]
[SourceTitle "playchess.com"]
[Source "ChessBase"]
[SourceQuality "1"]
[TimeControl "5400+30"]

1. d4 {[%emt 0:00:00]} Nf6 {[%emt 0:00:00]} 2. Bf4 {[%emt 0:00:00]} e6 {[%emt 0:00:31]} 3. e3 {[%emt 0:00:00]} b6 {[%emt 0:01:01]} 4. Nf3 {[%emt 0:00:55]} Nh5 {[%emt 0:00:23]} 5. Bg3 {[%emt 0:00:25]} Be7 {[%emt 0:01:24]} 6. Ne5 {[%emt 0:04:59]} Nxg3 {[%emt 0:06:08]} 7. Qf3 {[%emt 0:01:09]} O-O {[%emt 0:13:59]} 8. hxg3 {[%emt 0:00:56]} d5 {[%emt 0:01:39]} 9. Bd3 {[%emt 0:03:41]} h6 {[%emt 0:01:29]} 10. Qg4 {[%emt 0:05:36]} f5 {[%emt 0:02:30]} 11. Qh5 {[%emt 0:05:38]} Qe8 {[%emt 0:01:41]} 12. g4 {[%emt 0:14:01]} Qxh5 {[%emt 0:01:42]} 13. gxh5 {[%emt 0:00:07]} Bd6 {[%emt 0:00:53]} 14. f4 {[%emt 0:03:26]} Bxe5 {[%emt 0:05:06]} 15. fxe5 {[%emt 0:00:52]} Ba6 {[%emt 0:01:23]} 16. Ke2 {[%emt 0:04:19]} c5 {[%emt 0:00:30]} 17. Bxa6 {[%emt 0:02:47]} Nxa6 {[%emt 0:00:06]} 18. c3 {[%emt 0:09:19]} f4 {[%emt 0:00:35]} 19. Nd2 {[%emt 0:01:59]} fxe3 {[%emt 0:01:02]} 20. Nf3 {[%emt 0:01:00]} cxd4 {[%emt 0:02:10]} 21. cxd4 {[%emt 0:00:08]} Nb4 {[%emt 0:19:22]} 22. a3 {[%emt 0:11:29]} Nc6 {[%emt 0:00:11]} 23. Kxe3 {[%emt 0:07:17]} Na5 {[%emt 0:00:44]} 24. Nd2 {[%emt 0:00:40]} b5 25. b3 {[%emt 0:00:30]} Rfc8 26. Rac1 {[%emt 0:00:30]} Kf7 27. Rc5 {[%emt 0:00:30]} Rxc5 28. dxc5 {[%emt 0:00:30]} Nc6 29. Nf3 {[%emt 0:00:30]} a5 30. g4 {[%emt 0:00:30]} Ke7 31. Rg1 {[%emt 0:00:30]} b4 32. a4 {[%emt 0:00:30]} Rd8 33. Rd1 {[%emt 0:00:30]} d4+ 34. Nxd4 {[%emt 0:00:30]} Nxd4 35. Rxd4 {[%emt 0:00:30]} Rxd4 36. Kxd4 {[%emt 0:00:30]} Kd7 1/2-1/2

[Event "Aktogay Masters 2019"]
[Site "Aktogay"]
[Date "2019.05.15"]
[Round "1.4"]
[White "Sukhov, Artur"]
[Black "Nukin, Tolegen"]
[Result "1/2-1/2"]
[ECO "E14"]
[WhiteElo "2110"]
[BlackElo "2113"]
[Annotator "NA"]
[PlyCount "55"]
[EventDate "2019.05.11"]
[EventType "tourn"]
[EventCountry "KAZ"]
[SourceTitle "playchess.com"]
[Source "ChessBase"]
[SourceQuality "1"]
[TimeControl "5400+30"]

1. d4 {[%emt 0:00:00]} Nf6 {[%emt 0:00:00]} 2. c4 {[%emt 0:00:02]} e6 {[%emt 0:00:08]} 3. Nf3 {[%emt 0:00:23]} b6 {[%emt 0:00:34]} 4. e3 {[%emt 0:00:43]} Bb7 {[%emt 0:00:28]} 5. Bd3 {[%emt 0:00:49]} c5 {[%emt 0:00:56]} 6. Nc3 {[%emt 0:01:50]} cxd4 7. exd4 {[%emt 0:00:25]} Be7 {[%emt 0:02:05]} 8. O-O {[%emt 0:00:46]} d6 {[%emt 0:02:17]} 9. Re1 {[%emt 0:04:02]} O-O {[%emt 0:00:31]} 10. Bg5 {[%emt 0:01:06]} Nbd7 {[%emt 0:00:35]} 11. Rc1 {[%emt 0:02:50]} Re8 {[%emt 0:00:50]} 12. Qe2 {[%emt 0:17:31]} Rc8 {[%emt 0:00:51]} 13. a3 {[%emt 0:11:03]} Qc7 {[%emt 0:03:24]} 14. b4 {[%emt 0:04:22]} Qb8 {[%emt 0:06:16]} 15. Nd2 {[%emt 0:10:07]} Bf8 {[%emt 0:09:22]} 16. Nde4 {[%emt 0:02:53]} Nxe4 {[%emt 0:01:45]} 17. Nxe4 {[%emt 0:01:30]} d5 {[%emt 0:02:13]} 18. Ng3 {[%emt 0:04:07]} dxc4 {[%emt 0:00:49]} 19. Bxc4 {[%emt 0:02:02]} h6 {[%emt 0:04:39]} 20. Be3 {[%emt 0:07:02]} Nf6 {[%emt 0:00:33]} 21. Nh5 {[%emt 0:01:40]} Nxh5 {[%emt 0:05:21]} 22. Qxh5 {[%emt 0:06:11]} Qd6 {[%emt 0:01:34]} 23. Qg4 {[%emt 0:02:02]} Red8 {[%emt 0:01:48]} 24. Red1 {[%emt 0:02:33]} Kh8 {[%emt 0:04:53]} 25. Qh5 {[%emt 0:03:50]} Kg8 {[%emt 0:02:07]} 26. Qg4 {[%emt 0:00:20]} Kh8 {[%emt 0:00:04]} 27. Qh5 {[%emt 0:00:28]} Kg8 {[%emt 0:00:51]} 28. Qg4 {[%emt 0:00:09]} 1/2-1/2

[Event "Aktogay Masters 2019"]
[Site "Aktogay"]
[Date "2019.05.15"]
[Round "1.5"]
[White "Vlassov, Nikolai"]
[Black "Bekturov, Tamerlan"]
[Result "1-0"]
[ECO "B22"]
[WhiteElo "2393"]
[BlackElo "2241"]
[Annotator "NA"]
[PlyCount "133"]
[EventDate "2019.05.11"]
[EventType "tourn"]
[EventCountry "KAZ"]
[SourceTitle "playchess.com"]
[Source "ChessBase"]
[SourceQuality "1"]
[TimeControl "5400+30"]

1. e4 {[%emt 0:00:00]} c5 {[%emt 0:00:00]} 2. c3 {[%emt 0:00:00]} d5 {[%emt 0:00:00]} 3. exd5 {[%emt 0:00:00]} Qxd5 {[%emt 0:00:00]} 4. d4 {[%emt 0:00:00]} Nc6 {[%emt 0:00:07]} 5. Nf3 {[%emt 0:00:00]} Bf5 {[%emt 0:00:14]} 6. Nbd2 {[%emt 0:04:21]} Qe6+ {[%emt 0:00:26]} 7. Be2 {[%emt 0:01:25]} cxd4 {[%emt 0:00:17]} 8. Nxd4 {[%emt 0:02:28]} Nxd4 {[%emt 0:00:09]} 9. cxd4 {[%emt 0:00:01]} Bd3 {[%emt 0:00:12]} 10. Nb3 {[%emt 0:01:49]} Qxe2+ {[%emt 0:03:12]} 11. Qxe2 {[%emt 0:00:07]} Bxe2 {[%emt 0:00:08]} 12. Kxe2 {[%emt 0:00:05]} Nf6 {[%emt 0:02:00]} 13. Bf4 {[%emt 0:04:04]} e6 {[%emt 0:02:26]} 14. Rhc1 {[%emt 0:01:04]} Nd5 {[%emt 0:00:43]} 15. Be5 {[%emt 0:00:14]} f6 {[%emt 0:05:27]} 16. Bg3 {[%emt 0:01:28]} b6 {[%emt 0:03:15]} 17. Nd2 {[%emt 0:07:00]} Be7 {[%emt 0:07:56]} 18. Nc4 {[%emt 0:01:21]} Kf7 {[%emt 0:04:29]} 19. Ne3 {[%emt 0:02:42]} Rhd8 {[%emt 0:01:16]} 20. a3 {[%emt 0:04:05]} Bf8 {[%emt 0:15:44]} 21. Nxd5 {[%emt 0:05:47]} Rxd5 {[%emt 0:00:09]} 22. Rc7+ {[%emt 0:00:07]} Kg6 {[%emt 0:04:13]} 23. Rd1 {[%emt 0:01:56]} b5 {[%emt 0:02:27]} 24. Rb7 {[%emt 0:03:58]} a5 {[%emt 0:01:24]} 25. Bb8 {[%emt 0:01:24]} Ra6 {[%emt 0:06:25]} 26. Rd3 {[%emt 0:03:07]} Rc6 {[%emt 0:09:29]} 27. Rg3+ {[%emt 0:09:25]} Kf5 {[%emt 0:00:56]} 28. Rf7 {[%emt 0:07:50]} Rd8 {[%emt 0:01:30]} 29. Bc7 {[%emt 0:04:38]} Rc8 {[%emt 0:02:53]} 30. Bxa5 {[%emt 0:01:19]} Rc2+ {[%emt 0:04:16]} 31. Bd2 {[%emt 0:02:03]} Rxb2 {[%emt 0:02:15]} 32. Rg5+ {[%emt 0:09:02]} Ke4 {[%emt 0:00:11]} 33. Rh5 {[%emt 0:01:24]} f5 {[%emt 0:04:28]} 34. Rd7 {[%emt 0:01:08]} Rxd2+ {[%emt 0:03:37]} 35. Kxd2 {[%emt 0:00:02]} Bxa3 {[%emt 0:00:54]} 36. f3+ {[%emt 0:03:00]} Kf4 {[%emt 0:00:09]} 37. Rh4+ {[%emt 0:00:22]} Kg5 {[%emt 0:00:11]} 38. Rxh7 {[%emt 0:00:06]} Bb4+ {[%emt 0:02:39]} 39. Kd1 {[%emt 0:00:39]} Kf4 {[%emt 0:01:55]} 40. Rhxg7 {[%emt 0:00:58]} Rc4 {[%emt 0:01:05]} 41. Rb7 {[%emt 0:04:26]} Rxd4+ {[%emt 0:01:42]} 42. Kc2 {[%emt 0:00:13]} Rd2+ {[%emt 0:00:23]} 43. Kb3 {[%emt 0:00:38]} Bf8 {[%emt 0:00:13]} 44. Rg8 {[%emt 0:00:16]} Bc5 {[%emt 0:02:35]} 45. Rxb5 {[%emt 0:00:14]} Bd4 {[%emt 0:00:12]} 46. Kc4 {[%emt 0:00:56]} Ke3 {[%emt 0:00:32]} 47. Rb3+ {[%emt 0:00:36]} Ke2 {[%emt 0:00:17]} 48. f4 {[%emt 0:00:45]} Bg1 {[%emt 0:01:10]} 49. g4 {[%emt 0:15:57]} Rd4+ {[%emt 0:00:42]} 50. Kb5 {[%emt 0:00:00]} Rxf4 {[%emt 0:00:14]} 51. gxf5 {[%emt 0:00:00]} Rxf5+ 52. Kc6 {[%emt 0:00:00]} Bf2 53. Ra8 {[%emt 0:02:00]} Kf1 {[%emt 0:06:22]} 54. Ra2 {[%emt 0:00:30]} Kg1 {[%emt 0:02:02]} 55. h3 {[%emt 0:00:00]} Kg2 56. Kd6 {[%emt 0:00:00]} e5 57. Ke6 {[%emt 0:01:30]} Rf8 {[%emt 0:02:01]} 58. Kxe5 {[%emt 0:00:30]} Re8+ {[%emt 0:01:28]} 59. Kf6 {[%emt 0:00:00]} Rf8+ 60. Kg7 {[%emt 0:00:00]} Rf4 {[%emt 0:00:04]} 61. Kg6 Kh1 {[%emt 0:01:26]} 62. Rbb2 {[%emt 0:00:00]} Bd4 {[%emt 0:00:00]} 63. Rb1+ {[%emt 0:02:30]} Bg1 {[%emt 0:00:00]} 64. Raa1 {[%emt 0:00:00]} Kh2 {[%emt 0:00:00]} 65. Rxg1 {[%emt 0:00:00]} Rb4 {[%emt 0:02:00]} 66. Rh1+ {[%emt 0:00:00]} Kg3 {[%emt 0:00:30]} 67. Rag1+ {[%emt 0:00:00]} 1-0

[Event "Aktogay Masters 2019"]
[Site "Aktogay"]
[Date "2019.05.15"]
[Round "2.1"]
[White "Khusenkhojaev, Muhammad"]
[Black "Bekturov, Tamerlan"]
[Result "1-0"]
[ECO "D37"]
[WhiteElo "2445"]
[BlackElo "2241"]
[Annotator "NA"]
[PlyCount "99"]
[EventDate "2019.05.11"]
[EventType "tourn"]
[EventCountry "KAZ"]
[SourceTitle "playchess.com"]
[Source "ChessBase"]
[SourceQuality "1"]
[TimeControl "5400+30"]

1. d4 {[%emt 0:00:00]} Nf6 {[%emt 0:00:00]} 2. c4 {[%emt 0:00:00]} e6 {[%emt 0:00:00]} 3. Nc3 {[%emt 0:00:00]} d5 {[%emt 0:00:38]} 4. Nf3 {[%emt 0:00:00]} a6 {[%emt 0:00:07]} 5. cxd5 {[%emt 0:01:00]} exd5 {[%emt 0:00:08]} 6. Qc2 {[%emt 0:00:10]} Be6 {[%emt 0:01:54]} 7. Bg5 {[%emt 0:00:29]} Nbd7 {[%emt 0:00:20]} 8. e3 {[%emt 0:00:17]} Bd6 {[%emt 0:00:09]} 9. Bd3 {[%emt 0:00:29]} c6 {[%emt 0:00:45]} 10. O-O {[%emt 0:00:15]} Qc7 {[%emt 0:01:40]} 11. Bh4 {[%emt 0:02:21]} O-O {[%emt 0:03:53]} 12. Bg3 {[%emt 0:00:29]} Bg4 {[%emt 0:11:50]} 13. Ng5 {[%emt 0:10:55]} h6 {[%emt 0:03:39]} 14. Bxd6 {[%emt 0:00:24]} Qxd6 {[%emt 0:00:09]} 15. Nh7 {[%emt 0:00:04]} Nxh7 {[%emt 0:04:09]} 16. Bxh7+ {[%emt 0:00:13]} Kh8 {[%emt 0:00:07]} 17. Bd3 {[%emt 0:00:15]} c5 {[%emt 0:00:51]} 18. dxc5 {[%emt 0:01:22]} Nxc5 {[%emt 0:00:18]} 19. h3 {[%emt 0:03:53]} Be6 {[%emt 0:09:27]} 20. Ne2 {[%emt 0:01:39]} Rac8 {[%emt 0:01:54]} 21. Qd2 {[%emt 0:06:45]} Qb6 {[%emt 0:04:01]} 22. b3 {[%emt 0:01:31]} Ne4 {[%emt 0:05:00]} 23. Qb2 {[%emt 0:00:42]} Bd7 {[%emt 0:10:22]} 24. Rfc1 {[%emt 0:10:42]} Ng5 {[%emt 0:06:57]} 25. Rxc8 {[%emt 0:05:09]} Rxc8 {[%emt 0:00:24]} 26. Rd1 {[%emt 0:00:26]} a5 {[%emt 0:07:00]} 27. h4 {[%emt 0:06:59]} Ne6 {[%emt 0:03:13]} 28. Qe5 {[%emt 0:00:11]} Nc5 {[%emt 0:05:44]} 29. Bf5 {[%emt 0:03:11]} Be6 {[%emt 0:07:56]} 30. Rxd5 {[%emt 0:01:32]} Bxd5 {[%emt 0:03:24]} 31. Bxc8 {[%emt 0:00:06]} Qd8 {[%emt 0:00:05]} 32. Nf4 {[%emt 0:03:11]} Qxc8 {[%emt 0:01:56]} 33. Qxd5 {[%emt 0:00:12]} Kg8 {[%emt 0:00:06]} 34. Ng6 {[%emt 0:05:07]} Qc7 {[%emt 0:00:43]} 35. Ne5 {[%emt 0:00:14]} b6 {[%emt 0:01:29]} 36. Nc4 {[%emt 0:01:43]} Kh7 {[%emt 0:03:19]} 37. h5 {[%emt 0:01:09]} a4 {[%emt 0:01:09]} 38. bxa4 {[%emt 0:00:33]} Qa7 {[%emt 0:01:02]} 39. Ne5 {[%emt 0:04:27]} Kg8 {[%emt 0:00:51]} 40. Qd8+ {[%emt 0:00:17]} Kh7 {[%emt 0:00:07]} 41. Qe8 {[%emt 0:00:27]} Qxa4 {[%emt 0:01:50]} 42. Qxf7 {[%emt 0:00:27]} Qd1+ {[%emt 0:00:14]} 43. Kh2 {[%emt 0:00:06]} Qd6 {[%emt 0:00:03]} 44. Qe8 {[%emt 0:06:38]} Ne6 {[%emt 0:02:05]} 45. f4 {[%emt 0:00:30]} Nc7 {[%emt 0:00:19]} 46. Qc8 {[%emt 0:01:35]} Qc5 {[%emt 0:00:43]} 47. Qf5+ {[%emt 0:01:36]} Kg8 {[%emt 0:00:05]} 48. Qf7+ {[%emt 0:00:07]} Kh7 {[%emt 0:00:08]} 49. Nd7 {[%emt 0:00:45]} Qd6 {[%emt 0:00:24]} 50. e4 {[%emt 0:01:50]} 1-0

[Event "Aktogay Masters 2019"]
[Site "Aktogay"]
[Date "2019.05.15"]
[Round "2.2"]
[White "Suleymenov, Alisher"]
[Black "Kim, Kristina"]
[Result "1-0"]
[ECO "A85"]
[WhiteElo "2435"]
[BlackElo "1916"]
[Annotator "NA"]
[PlyCount "101"]
[EventDate "2019.05.11"]
[EventType "tourn"]
[EventCountry "KAZ"]
[SourceTitle "playchess.com"]
[Source "ChessBase"]
[SourceQuality "1"]
[TimeControl "5400+30"]

1. d4 {[%emt 0:00:00]} f5 {[%emt 0:00:00]} 2. c4 {[%emt 0:02:20]} Nf6 {[%emt 0:00:00]} 3. Nc3 {[%emt 0:00:09]} g6 {[%emt 0:00:00]} 4. Nf3 {[%emt 0:00:02]} Bg7 {[%emt 0:00:00]} 5. e3 {[%emt 0:00:05]} d6 {[%emt 0:00:00]} 6. Be2 {[%emt 0:00:06]} O-O {[%emt 0:00:00]} 7. O-O {[%emt 0:00:03]} Qe8 {[%emt 0:01:22]} 8. b4 {[%emt 0:03:17]} a5 {[%emt 0:00:09]} 9. b5 {[%emt 0:03:40]} b6 {[%emt 0:00:22]} 10. c5 {[%emt 0:25:58]} dxc5 {[%emt 0:20:20]} 11. dxc5 {[%emt 0:00:01]} bxc5 {[%emt 0:11:02]} 12. Ba3 {[%emt 0:09:35]} Nbd7 {[%emt 0:04:58]} 13. Ng5 {[%emt 0:08:44]} Nb6 {[%emt 0:06:26]} 14. Qb3+ {[%emt 0:00:35]} Kh8 {[%emt 0:00:39]} 15. Bxc5 {[%emt 0:01:13]} h6 {[%emt 0:19:34]} 16. Bf3 {[%emt 0:05:06]} Rb8 {[%emt 0:08:27]} 17. Ne6 {[%emt 0:00:40]} Bxe6 {[%emt 0:00:51]} 18. Qxe6 {[%emt 0:00:02]} Nfd7 {[%emt 0:00:33]} 19. Bd4 {[%emt 0:00:09]} Qf7 {[%emt 0:00:49]} 20. Qxf7 {[%emt 0:18:48]} Rxf7 {[%emt 0:00:06]} 21. Rfd1 {[%emt 0:00:17]} e5 {[%emt 0:02:36]} 22. Bxb6 {[%emt 0:01:30]} Nxb6 {[%emt 0:00:25]} 23. Bc6 {[%emt 0:01:36]} e4 {[%emt 0:01:47]} 24. Rac1 {[%emt 0:00:02]} Rff8 {[%emt 0:01:03]} 25. Ne2 {[%emt 0:01:14]} Rfd8 {[%emt 0:01:45]} 26. Nf4 {[%emt 0:00:15]} Kh7 {[%emt 0:02:33]} 27. Ne6 {[%emt 0:02:09]} Rxd1+ {[%emt 0:00:52]} 28. Rxd1 {[%emt 0:00:01]} Be5 {[%emt 0:00:14]} 29. h4 {[%emt 0:01:11]} Kg8 {[%emt 0:02:45]} 30. h5 {[%emt 0:02:47]} Kf7 {[%emt 0:02:15]} 31. Nd8+ {[%emt 0:00:18]} Ke7 {[%emt 0:00:24]} 32. Nb7 {[%emt 0:00:08]} gxh5 {[%emt 0:00:18]} 33. Nxa5 {[%emt 0:00:16]} Rg8 {[%emt 0:00:43]} 34. Bb7 {[%emt 0:04:49]} Kf6 {[%emt 0:03:18]} 35. Rc1 {[%emt 0:04:16]} Rb8 {[%emt 0:02:41]} 36. Rc6+ {[%emt 0:01:52]} Kg5 {[%emt 0:01:04]} 37. Rc5 {[%emt 0:01:57]} Bd6 {[%emt 0:00:33]} 38. Rc2 {[%emt 0:00:07]} h4 {[%emt 0:02:17]} 39. Bc6 {[%emt 0:00:56]} Be5 {[%emt 0:01:23]} 40. Nb7 {[%emt 0:00:48]} Ra8 {[%emt 0:01:24]} 41. Nd6 {[%emt 0:01:49]} Rf8 {[%emt 0:01:47]} 42. Ne8 {[%emt 0:00:01]} Rf7 {[%emt 0:01:31]} 43. f4+ {[%emt 0:01:37]} exf3 {[%emt 0:00:24]} 44. gxf3 {[%emt 0:00:00]} Bg3 {[%emt 0:01:03]} 45. Kg2 {[%emt 0:00:02]} Re7 {[%emt 0:00:32]} 46. f4+ {[%emt 0:00:23]} Kg6 {[%emt 0:00:21]} 47. Kf3 {[%emt 0:00:09]} Be1 {[%emt 0:01:18]} 48. Nxc7 {[%emt 0:01:48]} h3 {[%emt 0:00:34]} 49. Nd5 {[%emt 0:00:33]} Nxd5 {[%emt 0:00:13]} 50. Bxd5 {[%emt 0:00:01]} Kh5 {[%emt 0:00:20]} 51. b6 {[%emt 0:00:20]} 1-0

[Event "Aktogay Masters 2019"]
[Site "Aktogay"]
[Date "2019.05.15"]
[Round "2.3"]
[White "Kaiyrbekov, Rustam"]
[Black "Sukhov, Artur"]
[Result "1-0"]
[ECO "D03"]
[WhiteElo "2329"]
[BlackElo "2110"]
[Annotator "NA"]
[PlyCount "63"]
[EventDate "2019.05.11"]
[EventType "tourn"]
[EventCountry "KAZ"]
[SourceTitle "playchess.com"]
[Source "ChessBase"]
[SourceQuality "1"]
[TimeControl "5400+30"]

1. d4 {[%emt 0:00:00]} Nf6 {[%emt 0:00:00]} 2. Nf3 {[%emt 0:00:00]} g6 {[%emt 0:00:00]} 3. Bg5 {[%emt 0:00:00]} Bg7 {[%emt 0:00:00]} 4. Nbd2 {[%emt 0:00:00]} d5 {[%emt 0:00:17]} 5. e3 {[%emt 0:00:00]} c6 {[%emt 0:01:06]} 6. h3 {[%emt 0:00:48]} Nbd7 {[%emt 0:02:05]} 7. Bd3 {[%emt 0:00:24]} O-O {[%emt 0:03:44]} 8. c3 {[%emt 0:00:31]} Re8 {[%emt 0:01:02]} 9. Bf4 {[%emt 0:04:56]} Nh5 {[%emt 0:01:08]} 10. Bh2 {[%emt 0:12:39]} e5 {[%emt 0:17:09]} 11. g4 {[%emt 0:05:46]} e4 {[%emt 0:00:38]} 12. gxh5 {[%emt 0:00:34]} exd3 {[%emt 0:00:06]} 13. hxg6 {[%emt 0:00:25]} hxg6 {[%emt 0:01:09]} 14. Nb3 {[%emt 0:03:28]} Nb6 {[%emt 0:04:00]} 15. Qxd3 {[%emt 0:04:21]} Bf5 {[%emt 0:00:41]} 16. Qe2 {[%emt 0:01:12]} Nc4 {[%emt 0:00:22]} 17. O-O-O {[%emt 0:03:20]} Bh6 {[%emt 0:02:01]} 18. Ne5 {[%emt 0:03:07]} Qe7 {[%emt 0:06:40]} 19. h4 {[%emt 0:12:07]} f6 {[%emt 0:02:20]} 20. Nxc4 {[%emt 0:02:42]} dxc4 {[%emt 0:03:10]} 21. Qxc4+ {[%emt 0:00:41]} Kg7 {[%emt 0:00:03]} 22. Nd2 {[%emt 0:02:30]} Rac8 {[%emt 0:04:59]} 23. h5 {[%emt 0:03:30]} b5 {[%emt 0:00:43]} 24. Qc5 {[%emt 0:02:15]} Qf7 {[%emt 0:12:26]} 25. Rdg1 {[%emt 0:02:39]} Bd3 {[%emt 0:00:41]} 26. b3 {[%emt 0:05:12]} a5 {[%emt 0:01:50]} 27. hxg6 {[%emt 0:00:20]} Bxg6 {[%emt 0:06:02]} 28. Bf4 {[%emt 0:13:46]} Rh8 {[%emt 0:01:26]} 29. Rxg6+ {[%emt 0:04:49]} Qxg6 {[%emt 0:00:37]} 30. Qe7+ {[%emt 0:00:10]} Kg8 {[%emt 0:00:51]} 31. Qe6+ {[%emt 0:01:12]} Kg7 {[%emt 0:00:10]} 32. Qd7+ {[%emt 0:00:23]} 1-0